fUST/lending_fUST_20250824
["ID","MTS","AMOUNT","RATE_DAILY","PERIOD"]
[381042627,1755970239099,-500.0,0.00026173,2]
[381042628,1755970239108,-500.0,0.00026173,2]
[381042629,1755970239117,-500.0,0.00026173,2]
[381042630,1755970239126,-500.0,0.00026173,2]
[381042631,1755970239135,-500.0,0.00026173,2]
[381042632,1755970239144,-500.0,0.00026173,2]
[381042633,1755970239153,-500.0,0.00026173,2]
[381042634,1755970239163,-500.0,0.00026173,2]
[381042635,1755970239172,-500.0,0.00026173,2]
[381042636,1755970239181,-500.0,0.00026173,2]
[381042637,1755970239190,-500.0,0.00026173,2]
[381042638,1755970239199,-160.0,0.00026196,2]
[381042639,1755970239208,-160.0,0.00026196,2]
[381042640,1755970239217,-160.0,0.00026196,2]
[381042641,1755970239226,-160.0,0.00026196,2]
[381042642,1755970239236,-215.94678008,0.00026196,2]
[381042643,1755970239245,-376.14580871,0.00026196,2]
[381042644,1755970239254,-844.50316758,0.00026196,2]
[381042645,1755970239264,-160.0,0.00026196,2]
[381042648,1755970239273,-232.37252479,0.00026196,2]
[381042650,1755970239282,-160.0,0.00026196,2]
[381042652,1755970239291,-1088.71,0.000262,7]
[381042654,1755970239300,-529.05847148,0.00026244,2]
[381042656,1755970239309,-644.71635052,0.00026248,2]
[381042657,1755970239319,-150.31,0.00026261,7]
[381042658,1755970239328,-215.91153094,0.00026268,2]
[381042659,1755970239337,-1500.0,0.00026268,2]
[381042660,1755970239347,-1500.0,0.00026268,2]
[381042661,1755970239356,-1500.0,0.00026268,2]
[381042662,1755970239365,-500.0,0.00026348,4]
[381042663,1755970239374,-150.31,0.00026361,7]
[381042664,1755970239383,-784.18,0.00026433,3]
[381042665,1755970239392,-392.1,0.00026433,3]
[381042666,1755970239401,-150.31,0.00026461,7]
[381042667,1755970239411,-1088.71,0.00026474,8]
[381042669,1755970239421,-1288.86,0.000265,7]
[381042670,1755970239430,-3251.64,0.000265,7]
[381042671,1755970239439,-155.87,0.000265,7]
[381042672,1755970239449,-376.14580871,0.000265,7]
[381042673,1755970239458,-217.0334113,0.000265,7]
[381042674,1755970239467,-22919.56,0.000265,2]
[381042676,1755970239477,-232.37252479,0.000265,7]
[381042678,1755970239486,-844.50316758,0.000265,7]
[381042680,1755970239495,-1000.0,0.00026521,2]
[381042682,1755970239504,-524.63226612,0.00026521,2]
[381042684,1755970239513,-1000.0,0.00026521,2]
[381042686,1755970239523,-1072.9749811,0.00026521,2]
[381042688,1755970239532,-1000.0,0.00026521,2]
[381042690,1755970239542,-1000.0,0.00026521,2]
[381042692,1755970239551,-500.0,0.00026521,2]
[381042695,1755970239567,-675.98895175,0.00026521,2]
[381042698,1755970239585,-1000.0,0.00026521,2]
[381042700,1755970239602,-1000.0,0.00026521,2]
[381042703,1755970239622,-150.31,0.00026561,7]
[381042707,1755970239640,-500.0,0.00026573,2]
[381042709,1755970239659,-500.0,0.00026573,2]
[381042712,1755970239676,-500.0,0.00026573,2]
[381042715,1755970239692,-2000.0,0.00026616,2]
[381042717,1755970239708,-500.0,0.00026622,4]
[381042720,1755970239726,-150.31,0.00026661,7]
[381042724,1755970239747,-260.0,0.00026678,2]
[381042727,1755970239762,-2012.74954049,0.00026716,2]
[381042729,1755970239777,-1004.2643275,0.00026716,2]
[381042732,1755970239794,-2000.0,0.00026716,2]
[381042735,1755970239807,-2000.0,0.00026716,2]
[381042737,1755970239822,-2000.0,0.00026716,2]
[381042740,1755970239836,-2000.0,0.00026716,2]
[381042742,1755970239851,-2000.0,0.00026716,2]
[381042745,1755970239867,-2000.0,0.00026716,2]
[381042747,1755970239881,-1000.0,0.00026721,2]
[381042750,1755970239896,-1000.0,0.00026721,2]
[381042753,1755970239910,-1000.0,0.00026721,2]
[381042755,1755970239925,-1000.0,0.00026721,2]
[381042758,1755970239939,-1000.0,0.00026721,2]
[381042760,1755970239954,-1000.0,0.00026721,2]
[381042763,1755970239968,-1000.0,0.00026721,2]
[381042765,1755970239984,-1000.0,0.00026721,2]
[381042768,1755970239998,-1000.0,0.00026721,2]
[381042770,1755970240012,-1000.0,0.00026721,2]
[381042773,1755970240026,-1000.0,0.00026721,2]
[381042775,1755970240040,-1000.0,0.00026721,2]
[381042778,1755970240054,-1000.0,0.00026721,2]
[381042780,1755970240068,-1000.0,0.00026721,2]
[381042783,1755970240083,-1000.0,0.00026721,2]
[381042785,1755970240097,-1000.79405762,0.00026721,2]
[381042788,1755970240112,-1000.0,0.00026721,2]
[381042791,1755970240126,-1000.0,0.00026721,2]
[381042793,1755970240141,-1000.0,0.00026721,2]
[381042795,1755970240155,-1000.0,0.00026721,2]
[381042796,1755970240170,-1000.0,0.00026721,2]
[381042797,1755970240184,-1000.0,0.00026721,2]
[381042798,1755970240198,-1000.0,0.00026721,2]
[381042799,1755970240213,-1000.0,0.00026721,2]
[381042800,1755970240227,-1000.0,0.00026721,2]
[381042801,1755970240241,-1000.0,0.00026721,2]
[381042802,1755970240256,-1088.71,0.00026748,9]
[381042803,1755970240271,-150.31,0.00026761,7]
[381042804,1755970240285,-1001.7453302,0.00026773,2]
[381042805,1755970240299,-150.0,0.00026773,2]
[381042806,1755970240314,-3776.05215179,0.000268,3]
[381042807,1755970240330,-10463.59332962,0.00026806,2]
[381042808,1755970240344,-245.10200305,0.00026806,6]
[381042809,1755970240358,-2000.0,0.00026816,2]
[381042810,1755970240373,-2000.0,0.00026816,2]
[381042811,1755970240387,-2000.0,0.00026816,2]
[381042812,1755970240401,-150.31,0.00026861,7]
[381042813,1755970240415,-500.0,0.00026896,4]
[381042814,1755970240430,-150.31,0.00026961,7]
[381042815,1755970240444,-960.0,0.00026977,2]
[381042816,1755970240458,-100000.0,0.0002699,2]
[381042831,1755970240597,-376.14580871,0.00027,3]
[381042833,1755970240613,-182.02028979,0.00027,2]
[381042835,1755970240622,-10961.17405955,0.00027001,5]
[381042837,1755970240631,-1088.71,0.00027022,10]
[381042839,1755970240640,-1277.48,0.00027025,4]
[381042841,1755970240649,-420.0,0.00027053,2]
[381042843,1755970240663,-150.31,0.00027061,7]
[381042845,1755970240672,-1500.0,0.00027068,2]
[381042847,1755970240682,-1500.0,0.00027068,2]
[381042849,1755970240691,-1005.92074384,0.00027068,2]
[381042851,1755970240701,-452.30688607,0.00027068,2]
[381042853,1755970240711,-1500.0,0.00027068,2]
[381042855,1755970240720,-150.0,0.00027073,2]
[381042857,1755970240730,-1000.0,0.00027121,2]
[381042859,1755970240740,-1000.0,0.00027121,2]
[381042861,1755970240750,-1000.0,0.00027121,2]
[381042863,1755970240759,-150.31,0.00027161,7]
[381042865,1755970240768,-2500.0,0.00027164,2]
[381042867,1755970240778,-500.0,0.0002717,4]
[381042869,1755970240787,-1680.0,0.00027175,2]
[381042871,1755970240797,-360.0,0.00027226,2]
[381042873,1755970240806,-150.31,0.00027261,7]
[381042875,1755970240816,-326.75384102,0.00027264,2]
[381042877,1755970240826,-1004.62513227,0.00027264,2]
[381042879,1755970240835,-2500.0,0.00027264,2]
[381042881,1755970240844,-535.96537461,0.00027264,2]
[381042883,1755970240854,-2500.0,0.00027264,2]
[381042885,1755970240864,-2500.0,0.00027264,2]
[381042887,1755970240873,-1500.0,0.00027268,2]
[381042889,1755970240883,-240.75538708,0.00027268,2]
[381042891,1755970240896,-500.0,0.00027268,2]
[381042893,1755970240906,-1500.0,0.00027268,2]
[381042895,1755970240915,-682.04518959,0.00027268,2]
[381042897,1755970240924,-1572.38305192,0.00027268,2]
[381042899,1755970240934,-1500.0,0.00027268,2]
[381042901,1755970240944,-356.70338545,0.00027268,2]
[381042903,1755970240954,-1252.18846548,0.00027268,2]
[381042905,1755970240963,-1500.0,0.00027268,2]
[381042907,1755970240972,-1500.0,0.00027268,2]
[381042909,1755970240983,-1500.0,0.00027268,2]
[381042911,1755970240993,-1500.0,0.00027268,2]
[381042913,1755970241002,-955.53668787,0.00027268,2]
[381042915,1755970241011,-533.45963601,0.00027268,2]
[381042917,1755970241020,-1001.18062215,0.00027268,2]
[381042919,1755970241030,-1500.0,0.00027268,2]
[381042921,1755970241039,-1266.18781835,0.00027268,2]
[381042923,1755970241048,-1500.0,0.00027268,2]
[381042925,1755970241058,-501.02878889,0.00027268,2]
[381042927,1755970241068,-1549.52724497,0.00027268,2]
[381042929,1755970241077,-1500.0,0.00027268,2]
[381042931,1755970241087,-1500.0,0.00027268,2]
[381042933,1755970241096,-1500.0,0.00027268,2]
[381042935,1755970241105,-1500.0,0.00027268,2]
[381042937,1755970241115,-1088.71,0.00027296,11]
[381042939,1755970241124,-250.0,0.00027321,2]
[381042941,1755970241134,-150.31,0.00027361,7]
[381042943,1755970241144,-711.2717584,0.00027364,2]
[381042945,1755970241154,-2500.0,0.00027364,2]
[381042947,1755970241163,-2500.0,0.00027364,2]
[381042949,1755970241173,-197.09811208,0.0002739,2]
[381042951,1755970241182,-500.0,0.00027397,5]
[381042953,1755970241191,-150.31,0.00027461,15]
[381042955,1755970241201,-199.0,0.00027474,10]
[381042957,1755970241210,-150.31,0.00027561,15]
[381042959,1755970241220,-1088.71,0.0002757,12]
[381042961,1755970241231,-1119.22430229,0.00027616,5]
[381042963,1755970241240,-1499.30307551,0.00027616,5]
[381042965,1755970241249,-2000.0,0.00027616,5]
[381042967,1755970241259,-300.0,0.00027621,5]
[381042969,1755970241268,-1953.0,0.00027633,7]
[381042971,1755970241277,-1000.0,0.00027647,2]
[381042973,1755970241286,-1114.0,0.00027647,2]
[381042975,1755970241295,-177.75684308,0.00027647,2]
[381042977,1755970241304,-250.0,0.00027647,2]
[381042979,1755970241314,-250.0,0.00027647,2]
[381042981,1755970241323,-250.0,0.00027647,2]
[381042983,1755970241332,-250.0,0.00027647,2]
[381042985,1755970241341,-250.0,0.00027647,2]
[381042987,1755970241351,-250.0,0.00027647,2]
[381042989,1755970241360,-20633.42279861,0.00027647,2]
[381042991,1755970241369,-250.0,0.00027647,2]
[381042993,1755970241378,-250.0,0.00027647,2]
[381042995,1755970241388,-150.31,0.00027661,15]
[381042997,1755970241397,-520.46407251,0.00027668,5]
[381042999,1755970241407,-695.9990109,0.00027668,5]
[381043001,1755970241416,-1500.0,0.00027668,5]
[381043003,1755970241426,-157.121197,0.000277,2]
[381043005,1755970241436,-196289.7111915,0.000277,2]
[381043007,1755970241445,-151.0,0.000277,7]
[381043009,1755970241454,-151.0,0.000277,7]
[381043011,1755970241463,-255.997681,0.000277,7]
[381043013,1755970241473,-151.0,0.000277,7]
[381043015,1755970241483,-151.0,0.000277,7]
[381043017,1755970241492,-339.810479,0.000277,7]
[381043019,1755970241501,-339.810479,0.000277,7]
[381043021,1755970241511,-339.810479,0.000277,7]
[381043023,1755970241520,-151.0,0.000277,7]
[381043025,1755970241530,-339.810479,0.000277,7]
[381043027,1755970241539,-151.0,0.000277,7]
[381043029,1755970241549,-151.0,0.000277,7]
[381043031,1755970241558,-151.0,0.000277,7]
[381043033,1755970241568,-151.0,0.000277,7]
[381043035,1755970241581,-151.0,0.000277,7]
[381043037,1755970241591,-151.0,0.000277,7]
[381043039,1755970241600,-151.0,0.000277,7]
[381043041,1755970241609,-151.0,0.000277,7]
[381043044,1755970241619,-3000.0,0.00027712,5]
[381043046,1755970241628,-157.121197,0.0002775,2]
[381043048,1755970241637,-150.31,0.00027761,15]
[381043050,1755970241646,-309.4731781,0.00027773,2]
[381043052,1755970241659,-449.95802816,0.00027773,2]
[381043054,1755970241671,-460.0,0.00027774,2]
[381043056,1755970241680,-817.68831671,0.0002779,2]
[381043058,1755970241690,-943.99871092,0.0002779,2]
[381043060,1755970241699,-157.121197,0.000278,2]
[381043062,1755970241708,-3049.06719486,0.00027812,5]
[381043064,1755970241718,-3000.0,0.00027812,5]
[381043066,1755970241728,-3000.0,0.00027812,5]
[381043068,1755970241739,-1414.879026,0.00027816,7]
[381043070,1755970241748,-1414.879026,0.00027816,7]
[381043072,1755970241757,-408.508518,0.00027816,7]
[381043074,1755970241767,-1414.879026,0.00027816,7]
[381043076,1755970241776,-408.508518,0.00027816,7]
[381043078,1755970241785,-151.0,0.00027816,7]
[381043080,1755970241795,-1414.879026,0.00027816,7]
[381043082,1755970241806,-1534.66495259,0.00027816,5]
[381043084,1755970241815,-2000.0,0.00027816,2]
[381043086,1755970241824,-2000.0,0.00027816,5]
[381043088,1755970241833,-827.25911731,0.00027816,5]
[381043090,1755970241842,-2000.0,0.00027816,5]
[381043092,1755970241851,-296.98012232,0.00027816,5]
[381043094,1755970241861,-2000.0,0.00027816,5]
[381043096,1755970241870,-2000.0,0.00027816,5]
[381043098,1755970241879,-2000.0,0.00027816,5]
[381043100,1755970241889,-2000.0,0.00027816,5]
[381043102,1755970241898,-2000.0,0.00027816,5]
[381043104,1755970241907,-2000.0,0.00027816,5]
[381043106,1755970241916,-242.94924716,0.00027816,5]
[381043108,1755970241926,-1759.04958218,0.0002784,7]
[381043110,1755970241935,-168.0,0.00027842,2]
[381043112,1755970241945,-1088.71,0.00027844,13]
[381043114,1755970241954,-150.31,0.00027861,15]
[381043116,1755970241963,-296.86846492,0.00027868,5]
[381043118,1755970241973,-1288.86,0.000279,7]
[381043120,1755970241983,-3251.64,0.000279,7]
[381043122,1755970241992,-155.87,0.000279,7]
[381043124,1755970242001,-22919.56,0.000279,2]
[381043126,1755970242010,-215.94678008,0.000279,7]
[381043128,1755970242019,-3000.0,0.00027912,5]
[381043130,1755970242028,-500.0,0.00027912,5]
[381043132,1755970242036,-150.31,0.00027961,15]
[381043134,1755970242046,-160.0,0.00028,7]
[381043136,1755970242055,-1274.38623546,0.00028,2]
[381043138,1755970242065,-376.14580871,0.00028,10]
[381043140,1755970242074,-376.14580871,0.00028,10]
[381043142,1755970242084,-168.0,0.00028018,2]
[381043144,1755970242093,-150.31,0.00028061,15]
[381043146,1755970242103,-168.0,0.00028078,2]
[381043148,1755970242112,-1088.71,0.00028118,14]
[381043159,1755970242204,-1236.65481968,0.0002815,2]
[381043161,1755970242214,-150.31,0.00028161,15]
[381043163,1755970242224,-1294.80324733,0.00028164,5]
[381043165,1755970242233,-600.0,0.00028169,5]
[381043167,1755970242243,-168.0,0.00028197,2]
[381043169,1755970242252,-168.0,0.00028213,2]
[381043171,1755970242261,-2000.0,0.00028216,5]
[381043173,1755970242270,-3000.0,0.0002826,5]
[381043175,1755970242279,-150.31,0.00028261,15]
[381043177,1755970242288,-1954.0,0.00028301,2]
[381043179,1755970242297,-560.0,0.00028322,2]
[381043181,1755970242307,-2752.96060155,0.0002836,5]
[381043183,1755970242316,-3012.06810708,0.0002836,5]
[381043185,1755970242325,-150.31,0.00028361,15]
[381043187,1755970242335,-2500.0,0.00028364,2]
[381043189,1755970242344,-2000.0,0.00028364,5]
[381043191,1755970242353,-350.93706637,0.00028364,5]
[381043193,1755970242362,-1008.5544865,0.00028364,5]
[381043195,1755970242372,-2500.0,0.00028364,5]
[381043197,1755970242381,-2500.0,0.00028364,5]
[381043199,1755970242392,-1655.26472966,0.00028364,5]
[381043201,1755970242401,-2000.0,0.00028364,5]
[381043203,1755970242411,-500.0,0.00028364,5]
[381043205,1755970242421,-1088.71,0.00028392,15]
[381043207,1755970242430,-1495.9954359,0.0002846,5]
[381043209,1755970242439,-150.31,0.00028461,15]
[381043211,1755970242448,-151.0,0.000285,10]
[381043213,1755970242458,-151.0,0.000285,14]
[381043215,1755970242468,-83481.07461278,0.00028528,2]
[381043217,1755970242477,-245.10200305,0.00028533,10]
[381043219,1755970242487,-150.31,0.00028561,15]
[381043221,1755970242496,-168.0,0.00028626,2]
[381043223,1755970242506,-10463.59332962,0.00028639,2]
[381043225,1755970242515,-8542.72307835,0.00028648,2]
[381043227,1755970242524,-150.31,0.00028661,15]
[381043229,1755970242534,-168.0,0.00028662,2]
[381043231,1755970242543,-1088.71,0.00028666,16]
[381043233,1755970242552,-2157.40259591,0.00028674,2]
[381043235,1755970242561,-150.0,0.00028739,2]
[381043237,1755970242570,-500.0,0.00028739,2]
[381043239,1755970242579,-500.0,0.00028739,2]
[381043241,1755970242588,-500.0,0.00028739,2]
[381043243,1755970242597,-500.0,0.00028739,2]
[381043245,1755970242606,-500.0,0.00028739,2]
[381043247,1755970242615,-500.0,0.00028739,2]
[381043248,1755970242630,-558.8149971,0.00028739,2]
[381043250,1755970242639,-203.071065,0.00028739,10]
[381043252,1755970242648,-124660.14606856,0.00028739,20]
[381043292,1755970242958,-347.39457964,0.00027444,4]
[381043294,1755970242967,-408.508518,0.00027816,7]
[381043296,1755970242976,-2274185.51666088,0.00028739,20]
[381043298,1755970242991,-191120.26990758,0.00028739,20]
[381043407,1755970244039,-0.05468189,0.00027647,2]
[381043486,1755970245024,-249.94531811,0.00027647,2]
[381043488,1755970245033,-250.0,0.00027647,2]
[381043490,1755970245042,-300.0,0.00027647,2]
[381043492,1755970245051,-369.964363,0.000277,7]
[381043494,1755970245061,-369.964363,0.000277,7]
[381043496,1755970245070,-151.0,0.00027816,7]
[381043498,1755970245079,-151.0,0.00027816,7]
[381043500,1755970245088,-408.508518,0.00027816,7]
[381043502,1755970245097,-192.07468,0.00027816,7]
[381043504,1755970245107,-5166.28354719,0.00028739,2]
[381043506,1755970245116,-12267.81968587,0.00028739,20]
[381043565,1755970245602,-160.0,0.00025062,2]
[381043589,1755970245826,-245.70870322,0.00025062,2]
[381043591,1755970245835,-151.0,0.00025597,5]
[381043593,1755970245845,-191.0,0.00025597,5]
[381043595,1755970245855,-250.0,0.00027647,2]
[381043597,1755970245864,-145.24600192,0.00027647,2]
[381043599,1755970245877,-154.75399808,0.00027647,2]
[381043601,1755970245886,-250.0,0.00027647,2]
[381043603,1755970245896,-300.0,0.00027647,2]
[381043605,1755970245906,-369.964363,0.000277,7]
[381043607,1755970245915,-369.964363,0.000277,7]
[381043609,1755970245924,-26089.27468711,0.00028739,20]
[381043611,1755970245935,-484.58438132,0.00028739,20]
[381043613,1755970245946,-308.4217,0.00028739,20]
[381043617,1755970245975,-830.6395,0.00028739,20]
[381043619,1755970245987,-6817.32648989,0.00028739,20]
[381043621,1755970245999,-29942.77572349,0.00028739,20]
[381043624,1755970246010,-1101.14881583,0.00028739,20]
[381043650,1755970246274,-543121.10899043,0.00028739,20]
[381043652,1755970246285,-2763.69164716,0.00028739,20]
[381044284,1755970265906,-698.61212129,0.00024953,2]
[381044285,1755970272603,392.16320488,0.00020763,2]
[381044286,1755970272975,392.16320488,0.0002249,2]
[381044287,1755970273054,392.16320488,0.00024216,2]
[381044288,1755970276250,164.628817,0.00013699,2]
[381044289,1755970276460,164.628817,0.00021404,2]
[381044290,1755970310466,-160.61025605,0.00024899,2]
[381044291,1755970313148,-480.0,0.00024899,2]
[381044292,1755970314675,-333.1762591,0.00024899,2]
[381044293,1755970316115,-254.28348485,0.00024899,2]
[381044294,1755970316137,-133.38803079,0.00024953,2]
[381044295,1755970319169,-214.26673267,0.00024953,2]
[381044296,1755970360580,160.0,0.0002,3]
[381044297,1755970363330,181.321213,0.00024097,2]
[381044298,1755970380475,-160.0,0.00024899,2]
[381044299,1755970380496,-124.19827659,0.00024906,2]
[381044300,1755970382943,-79.98704671,0.00024906,2]
[381044301,1755970382966,-336.5504043,0.00024953,2]
[381044302,1755970384956,-440.7242219,0.00024953,2]
[381044303,1755970387787,-280.87622355,0.00024953,2]
[381044304,1755970388067,416.53745101,0.00024898,2]
[381044305,1755970390463,-168.62254977,0.00024953,2]
[381044306,1755970394179,-220.0,0.00024953,2]
[381044307,1755970397726,-264.40347852,0.00024953,2]
[381044308,1755970399164,-300.0,0.00024953,2]
[381044309,1755970401145,-317.45553183,0.00024953,2]
[381044310,1755970403259,545.27970207,0.00024898,2]
[381044311,1755970403289,-200.0,0.00024953,2]
[381044312,1755970405993,-404.66014415,0.00024953,2]
[381044313,1755970408835,-255.17850096,0.00024953,2]
[381044314,1755970411462,-151.90456186,0.00024953,2]
[381044315,1755970414212,-308.83385465,0.00024953,2]
[381044316,1755970416980,-304.52364376,0.00024953,2]
[381044317,1755970417001,-44.12402445,0.00024953,2]
[381044318,1755970419007,-171.73971442,0.00024966,2]
[381044319,1755970419423,1487.87103178,0.00024898,2]
[381044320,1755970420323,-104.77777898,0.00024966,2]
[381044321,1755970420345,-195.22222102,0.00025099,2]
[381044322,1755970421375,10000.0,0.00024857,2]
[381044323,1755970421918,-160.0,0.00024953,2]
[381044324,1755970421939,-19.26803089,0.00025099,2]
[381044325,1755970423571,-85.50974809,0.00025099,2]
[381044326,1755970428077,5000.0,0.00024898,2]
[381044327,1755970436034,999.65541352,0.00024898,2]
[381044328,1755970438694,332.67711566,0.0002249,2]
[381044329,1755970438837,332.67711566,0.00024216,2]
[381044330,1755970444513,5000.0,0.00024898,2]
[381044331,1755970460494,5000.0,0.00024898,2]
[381044332,1755970461153,-202.58034097,0.00025045,2]
[381044333,1755970464263,-394.4093505,0.00025045,2]
[381044334,1755970468108,288.09008906,0.00024898,2]
[381044335,1755970468882,-191.06581033,0.00025045,2]
[381044336,1755970473541,-176.80344377,0.00025045,2]
[381044337,1755970476116,-35.14105443,0.00025045,2]
[381044338,1755970476138,-145.93998458,0.00025099,2]
[381044339,1755970476448,5000.0,0.00024898,2]
[381044340,1755970478998,-182.59745565,0.00025099,2]
[381044341,1755970483159,-209.89621954,0.00025099,2]
[381044342,1755970486148,-221.07467357,0.00025099,2]
[381044343,1755970486172,-3.77172085,0.00025943,4]
[381044344,1755970487758,-296.44900564,0.00025943,4]
[381044345,1755970489786,-240.94721516,0.00025187,2]
[381044346,1755970489812,-32.45638917,0.00025943,4]
[381044347,1755970489838,-47.47052621,0.00025966,2]
[381044348,1755970491308,-334.45184889,0.00025966,2]
[381044350,1755970492594,5000.0,0.00024898,2]
[381044351,1755970495421,-160.0,0.00025045,2]
[381044352,1755970495442,-55.36780267,0.00025966,2]
[381044353,1755970497509,-184.55775529,0.00025966,2]
[381044354,1755970499549,-184.54139018,0.00025966,2]
[381044355,1755970503126,160.3201214,0.00020473,2]
[381044356,1755970503736,-161.57570471,0.00025966,2]
[381044358,1755970505919,-309.44543974,0.00025966,2]
[381044359,1755970509408,5000.0,0.00024898,2]
[381044360,1755970509939,-292.96245956,0.00025966,2]
[381044361,1755970511646,-252.01808931,0.00025966,2]
[381044362,1755970513594,-154.45464168,0.00025966,2]
[381044364,1755970516323,-107.54013906,0.00025966,2]
[381044365,1755970516344,-155.93815139,0.00025991,2]
[381044366,1755970520485,-64.06184861,0.00025991,2]
[381044367,1755970520506,-160.0,0.00026,7]
[381044368,1755970520528,-8.75489865,0.00026022,2]
[381044369,1755970522557,-264.33933233,0.00026022,2]
[381044370,1755970524535,-275.15360558,0.00026022,2]
[381044371,1755970525437,5000.0,0.00024898,2]
[381044374,1755970542519,5000.0,0.00024899,2]
[381044376,1755970554937,-228.41470631,0.00025349,2]
[381044377,1755970558515,5000.0,0.00024899,2]
[381044378,1755970562326,150.0,0.00024833,2]
[381044379,1755970575461,4850.0,0.00024899,2]
[381044380,1755970603235,266.14169254,0.0002249,2]
[381044381,1755970603534,170.7502673,0.00024216,2]
[381044382,1755970603572,95.39142524,0.00024216,2]
[381044383,1755970680897,181.34,0.00018182,2]
[381044384,1755970681286,181.34,0.00018182,2]
[381044385,1755970687678,-150.0,0.00024899,2]
[381044386,1755970694824,5000.0,0.00024943,2]
[381044388,1755970709761,1361.45803079,0.00024918,14]
[381044389,1755970711436,5000.0,0.00025043,2]
[381044390,1755970727302,3638.55196921,0.00025043,2]
[381044391,1755970727764,-1361.44803079,0.00025043,2]
[381044392,1755970744135,5000.0,0.00025143,2]
[381044393,1755970747713,277.0,0.00027397,120]
[381044394,1755970760694,5000.0,0.00025143,2]
[381044395,1755970768384,0.01,0.0002249,2]
[381044396,1755970768407,230.64613352,0.0002249,2]
[381044397,1755970768791,230.65613352,0.00024216,2]
[381044398,1755970777292,4526.34039561,0.00025143,2]
[381044399,1755970780266,203.51170235,0.00024799,2]
[381044400,1755970798700,2864.017196,0.00024479,2]
[381044401,1755970810478,197.62214467,0.00025143,2]
[381044402,1755970855472,500.0,0.00025072,2]
[381044404,1755970933584,399.8039648,0.0002249,2]
[381044405,1755970933686,399.8039648,0.00024216,2]
[381044406,1755971039006,-290.74632319,0.00025228,2]
[381044407,1755971097560,293.18957416,0.0002249,2]
[381044408,1755971097610,293.18957416,0.00024216,2]
[381044409,1755971144544,202.75779828,0.00025228,2]
[381044410,1755971153401,6780.3653277,0.00024347,2]
[381044411,1755971180129,177.928742,0.00024542,2]
[381044412,1755971180336,177.928742,0.00024542,31]
[381044413,1755971180548,177.928742,0.00024542,61]
[381044414,1755971180772,177.928742,0.00024542,90]
[381044415,1755971180994,177.928742,0.00024542,120]
[381044416,1755971192305,447.60836473,0.00025143,7]
[381044417,1755971238117,-237.2109271,0.00025328,2]
[381044418,1755971238138,-31.213652,0.00025344,2]
[381044419,1755971256987,164.628817,0.00013699,2]
[381044420,1755971257048,164.628817,0.00022505,2]
[381044421,1755971262760,307.76387075,0.000199,2]
[381044422,1755971262808,52.67024184,0.00021627,2]
[381044423,1755971262832,255.09362871,0.00021627,2]
[381044424,1755971262874,307.76387055,0.0002508,2]
[381044425,1755971263127,307.76387055,0.00023353,2]
[381044426,1755971284165,447.60836473,0.00025143,7]
[381044427,1755971381604,8681.78026546,0.00024348,2]
[381044428,1755971381626,1318.21973454,0.00024348,2]
[381044429,1755971429772,266.72868781,0.000199,2]
[381044430,1755971429830,266.72868781,0.00023353,2]
[381044431,1755971429926,266.72868781,0.00021627,2]
[381044432,1755971430447,266.72868781,0.0002508,2]
[381044438,1755971431971,-160.0,0.00025342,2]
[381044440,1755971431981,-90.71300834,0.00025348,9]
[381044441,1755971431992,-440.81999166,0.00025348,9]
[381044442,1755971432001,-482.0,0.00025348,2]
[381044444,1755971432010,-29182.97290309,0.00025349,2]
[381044445,1755971432020,-151.0,0.00025349,2]